[Event "EYCC Open-U18 2019"]
[Site "Bratislava"]
[Date "2019.08.07"]
[Round "6.46"]
[White "Joensson, Jacob"]
[Black "Ghersinich, Enrico"]
[Result "0-1"]
[ECO "E10"]
[WhiteElo "1981"]
[BlackElo "2221"]
[Annotator "NA"]
[PlyCount "72"]
[EventDate "2019.08.02"]
[EventType "swiss"]
[EventCountry "SVK"]
[SourceTitle "playchess.com"]
[Source "ChessBase"]
[SourceQuality "1"]
[TimeControl "40/5400+30:1800+30"]

1. d4 {[%emt 0:00:00]} Nf6 {[%emt 0:00:00]} 2. Nf3 {[%emt 0:00:00]} c5 {[%emt 0:00:01]} 3. d5 {[%emt 0:00:00]} e6 {[%emt 0:01:03]} 4. c4 {[%emt 0:00:36]} b5 {[%emt 0:00:46]} 5. dxe6 {[%emt 0:08:02]} fxe6 {[%emt 0:00:15]} 6. cxb5 {[%emt 0:01:08]} a6 {[%emt 0:01:26]} 7. e3 {[%emt 0:02:12]} d5 {[%emt 0:04:41]} 8. Nc3 {[%emt 0:05:18]} g6 {[%emt 0:02:57]} 9. Be2 {[%emt 0:04:38]} Bg7 {[%emt 0:00:32]} 10. O-O {[%emt 0:03:34]} O-O {[%emt 0:00:40]} 11. Qc2 {[%emt 0:05:48]} Qe7 {[%emt 0:04:45]} 12. Rd1 {[%emt 0:14:39]} Bb7 {[%emt 0:01:23]} 13. b3 {[%emt 0:02:58]} e5 {[%emt 0:07:42]} 14. Bb2 {[%emt 0:02:28]} d4 {[%emt 0:02:34]} 15. exd4 {[%emt 0:16:07]} cxd4 {[%emt 0:00:25]} 16. Na4 {[%emt 0:01:01]} Nbd7 {[%emt 0:04:03]} 17. bxa6 {[%emt 0:02:39]} Be4 {[%emt 0:01:13]} 18. Bc4+ {[%emt 0:00:58]} Kh8 {[%emt 0:00:21]} 19. Qe2 {[%emt 0:00:14]} Rae8 {[%emt 0:14:35]} 20. Ng5 {[%emt 0:04:22]} Ba8 {[%emt 0:00:19]} 21. Ne6 {[%emt 0:00:33]} Nh5 {[%emt 0:01:10]} 22. f3 {[%emt 0:02:23]} Rf6 {[%emt 0:03:29]} 23. Nc7 {[%emt 0:09:15]} Nf4 {[%emt 0:03:03]} 24. Qf1 {[%emt 0:01:58]} Nxg2 {[%emt 0:03:42]} 25. Qxg2 {[%emt 0:05:14]} Bxf3 {[%emt 0:00:08]} 26. Nd5 {[%emt 0:02:35]} Qd8 {[%emt 0:04:58]} 27. Qh3 {[%emt 0:01:12]} Rf5 {[%emt 0:00:40]} 28. Rd3 {[%emt 0:02:25]} Rg5+ {[%emt 0:03:39]} 29. Kf2 {[%emt 0:00:47]} Be4 {[%emt 0:00:41]} 30. a7 {[%emt 0:01:14]} Rf8+ {[%emt 0:00:28]} 31. Ke2 {[%emt 0:00:38]} Rg2+ {[%emt 0:00:28]} 32. Qxg2 {[%emt 0:00:26]} Bxg2 {[%emt 0:00:10]} 33. Rg3 {[%emt 0:00:31]} d3+ {[%emt 0:02:38]} 34. Rxd3 {[%emt 0:00:34]} Qh4 {[%emt 0:00:10]} 35. Re1 {[%emt 0:00:32]} Bh6 {[%emt 0:01:06]} 36. Rg3 {[%emt 0:00:21]} Qxh2 {[%emt 0:01:09]} 0-1

[Event "EYCC Open-U18 2019"]
[Site "Bratislava"]
[Date "2019.08.07"]
[Round "6.47"]
[White "Cordeiro, Joao Carlos Santos F"]
[Black "Marzo Pie, Xavier"]
[Result "0-1"]
[ECO "B06"]
[WhiteElo "1924"]
[BlackElo "2202"]
[Annotator "NA"]
[PlyCount "94"]
[EventDate "2019.08.02"]
[EventType "swiss"]
[EventCountry "SVK"]
[SourceTitle "playchess.com"]
[Source "ChessBase"]
[SourceQuality "1"]
[TimeControl "40/5400+30:1800+30"]

1. e4 {[%emt 0:00:00]} d6 {[%emt 0:00:00]} 2. d4 {[%emt 0:00:00]} g6 {[%emt 0:00:00]} 3. Nc3 {[%emt 0:00:09]} Bg7 {[%emt 0:00:00]} 4. Be3 {[%emt 0:00:16]} a6 {[%emt 0:00:00]} 5. Qd2 {[%emt 0:05:27]} b5 {[%emt 0:00:01]} 6. f3 {[%emt 0:00:42]} Nd7 {[%emt 0:00:10]} 7. g4 {[%emt 0:02:11]} Bb7 {[%emt 0:02:39]} 8. h4 {[%emt 0:03:41]} h5 {[%emt 0:08:45]} 9. g5 {[%emt 0:02:47]} e6 {[%emt 0:00:04]} 10. Nh3 {[%emt 0:15:17]} Ne7 {[%emt 0:02:44]} 11. Ne2 {[%emt 0:19:21]} c5 {[%emt 0:06:07]} 12. c3 {[%emt 0:04:10]} Qc7 {[%emt 0:06:03]} 13. Bg2 {[%emt 0:06:45]} Nb6 {[%emt 0:03:57]} 14. b3 {[%emt 0:00:24]} a5 {[%emt 0:11:30]} 15. O-O {[%emt 0:01:26]} O-O {[%emt 0:05:44]} 16. Ng3 {[%emt 0:12:11]} b4 {[%emt 0:03:11]} 17. cxb4 {[%emt 0:05:35]} axb4 {[%emt 0:02:10]} 18. Rac1 {[%emt 0:02:29]} c4 {[%emt 0:20:28]} 19. Qxb4 {[%emt 0:07:31]} Rxa2 {[%emt 0:00:05]} 20. bxc4 {[%emt 0:03:19]} Rfa8 {[%emt 0:06:10]} 21. Bf2 {[%emt 0:03:45]} Nc6 {[%emt 0:02:57]} 22. Qb3 {[%emt 0:00:37]} Nxd4 {[%emt 0:00:18]} 23. Qd3 {[%emt 0:01:02]} R8a3 {[%emt 0:00:50]} 24. Qd1 {[%emt 0:01:16]} e5 {[%emt 0:03:17]} 25. Bxd4 {[%emt 0:00:28]} exd4 {[%emt 0:00:06]} 26. Rf2 {[%emt 0:01:06]} Rxf2 {[%emt 0:06:40]} 27. Nxf2 {[%emt 0:00:24]} Nxc4 {[%emt 0:00:20]} 28. Nf1 {[%emt 0:00:48]} d5 {[%emt 0:04:09]} 29. Nd2 {[%emt 0:00:34]} Rc3 {[%emt 0:01:35]} 30. Rxc3 {[%emt 0:00:40]} dxc3 {[%emt 0:00:03]} 31. Nxc4 {[%emt 0:00:12]} Qxc4 {[%emt 0:00:03]} 32. Bf1 {[%emt 0:00:32]} Qc5 {[%emt 0:01:28]} 33. Kg2 {[%emt 0:00:27]} c2 {[%emt 0:01:32]} 34. Qc1 {[%emt 0:00:06]} Bb2 {[%emt 0:00:22]} 35. Qxb2 {[%emt 0:00:44]} c1=Q {[%emt 0:00:12]} 36. Qxb7 {[%emt 0:00:21]} Q1c2 {[%emt 0:00:47]} 37. Qb8+ {[%emt 0:00:28]} Kh7 {[%emt 0:00:06]} 38. Qg3 {[%emt 0:00:56]} dxe4 {[%emt 0:00:49]} 39. fxe4 {[%emt 0:00:09]} Qd4 {[%emt 0:00:57]} 40. Qf3 {[%emt 0:00:00]} Kg8 {[%emt 0:00:00]} 41. Qf4 {[%emt 0:05:20]} Kg7 {[%emt 0:06:25]} 42. Bb5 {[%emt 0:04:01]} Qb1 {[%emt 0:03:23]} 43. Be8 {[%emt 0:02:12]} Qb7 {[%emt 0:00:26]} 44. Kf3 {[%emt 0:05:33]} Kf8 {[%emt 0:00:15]} 45. Ba4 {[%emt 0:01:56]} Qxa4 {[%emt 0:00:16]} 46. Qf6 {[%emt 0:00:51]} Qab3+ {[%emt 0:00:43]} 47. Kg2 {[%emt 0:00:19]} Qb2 {[%emt 0:00:04]} 0-1

[Event "EYCC Open-U18 2019"]
[Site "Bratislava"]
[Date "2019.08.07"]
[Round "6.48"]
[White "Easwaralingam, Adesh"]
[Black "Johannsson, Birkir Isak"]
[Result "0-1"]
[ECO "B90"]
[WhiteElo "2113"]
[BlackElo "1988"]
[Annotator "NA"]
[PlyCount "106"]
[EventDate "2019.08.02"]
[EventType "swiss"]
[EventCountry "SVK"]
[SourceTitle "playchess.com"]
[Source "ChessBase"]
[SourceQuality "1"]
[TimeControl "40/5400+30:1800+30"]

1. e4 {[%emt 0:00:00]} c5 {[%emt 0:00:00]} 2. Nf3 {[%emt 0:00:00]} d6 {[%emt 0:00:00]} 3. d4 {[%emt 0:00:01]} cxd4 {[%emt 0:00:00]} 4. Nxd4 {[%emt 0:00:06]} Nf6 {[%emt 0:00:00]} 5. Nc3 {[%emt 0:00:11]} a6 {[%emt 0:00:01]} 6. Be3 {[%emt 0:00:31]} e6 {[%emt 0:02:15]} 7. Be2 {[%emt 0:00:17]} Be7 {[%emt 0:00:40]} 8. f4 {[%emt 0:00:21]} O-O {[%emt 0:00:10]} 9. g4 {[%emt 0:00:07]} d5 {[%emt 0:00:03]} 10. e5 {[%emt 0:00:14]} Ne4 {[%emt 0:00:55]} 11. Nxe4 {[%emt 0:00:53]} dxe4 {[%emt 0:00:03]} 12. g5 {[%emt 0:02:17]} b5 {[%emt 0:04:38]} 13. h4 {[%emt 0:05:37]} Qa5+ {[%emt 0:04:00]} 14. Kf2 {[%emt 0:04:56]} Bb7 {[%emt 0:04:16]} 15. Qg1 {[%emt 0:12:40]} Nc6 {[%emt 0:05:06]} 16. Nb3 {[%emt 0:00:56]} Qc7 {[%emt 0:03:44]} 17. Kg3 {[%emt 0:09:45]} Nb4 {[%emt 0:04:27]} 18. Bc5 {[%emt 0:06:35]} Rac8 {[%emt 0:15:36]} 19. Bxb4 {[%emt 0:01:50]} Bxb4 {[%emt 0:03:05]} 20. c3 {[%emt 0:00:59]} Be7 {[%emt 0:01:08]} 21. h5 {[%emt 0:03:52]} Rfd8 {[%emt 0:04:48]} 22. g6 {[%emt 0:04:48]} Bf8 {[%emt 0:01:44]} 23. Qe3 {[%emt 0:11:03]} Bd5 {[%emt 0:08:30]} 24. gxf7+ {[%emt 0:08:21]} Qxf7 {[%emt 0:00:51]} 25. Rad1 {[%emt 0:00:54]} Qe8 {[%emt 0:03:36]} 26. Nd4 {[%emt 0:08:30]} Bc5 {[%emt 0:02:47]} 27. Rd2 {[%emt 0:00:19]} Rd7 {[%emt 0:03:55]} 28. Rhd1 {[%emt 0:04:29]} Rcd8 {[%emt 0:00:36]} 29. Bg4 {[%emt 0:01:15]} Kh8 {[%emt 0:01:31]} 30. a3 {[%emt 0:05:12]} Bb6 {[%emt 0:00:53]} 31. Qe2 {[%emt 0:01:59]} Qe7 {[%emt 0:01:23]} 32. Qe1 {[%emt 0:02:37]} Qe8 {[%emt 0:01:39]} 33. Kh3 {[%emt 0:02:50]} Re7 {[%emt 0:02:25]} 34. Qg3 {[%emt 0:00:39]} Bc4 {[%emt 0:01:36]} 35. Kh2 {[%emt 0:00:38]} Bd3 {[%emt 0:01:18]} 36. Nb3 {[%emt 0:00:41]} Red7 {[%emt 0:02:40]} 37. Nc1 {[%emt 0:00:16]} Bc4 {[%emt 0:00:41]} 38. Qe1 {[%emt 0:01:37]} e3 {[%emt 0:00:35]} 39. Rxd7 {[%emt 0:00:09]} Rxd7 {[%emt 0:00:08]} 40. Bf3 {[%emt 0:00:00]} Qd8 {[%emt 0:00:00]} 41. Rxd7 {[%emt 0:02:31]} Qxd7 {[%emt 0:03:01]} 42. Bd1 {[%emt 0:04:58]} Qc6 {[%emt 0:08:56]} 43. b3 {[%emt 0:13:18]} Bd5 {[%emt 0:00:53]} 44. Be2 {[%emt 0:03:38]} Be4 {[%emt 0:04:36]} 45. c4 {[%emt 0:02:59]} h6 {[%emt 0:01:34]} 46. Qc3 {[%emt 0:01:01]} Bh1 {[%emt 0:06:18]} 47. Bf1 {[%emt 0:01:20]} Bf3 {[%emt 0:13:26]} 48. Be2 {[%emt 0:01:54]} Qe4 {[%emt 0:04:15]} 49. Kg3 {[%emt 0:00:53]} Bh1 {[%emt 0:00:31]} 50. Qd3 {[%emt 0:01:14]} Qg2+ {[%emt 0:02:49]} 51. Kh4 {[%emt 0:00:04]} Qh2+ {[%emt 0:00:10]} 52. Kg4 {[%emt 0:00:07]} Bg2 {[%emt 0:01:05]} 53. f5 {[%emt 0:01:22]} Bh3+ {[%emt 0:00:45]} 0-1

[Event "EYCC Open-U18 2019"]
[Site "Bratislava"]
[Date "2019.08.08"]
[Round "7.1"]
[White "Zarubitski, Viachaslau"]
[Black "Kaasen, Tor Fredrik"]
[Result "1/2-1/2"]
[ECO "B51"]
[WhiteElo "2424"]
[BlackElo "2376"]
[Annotator "NA"]
[PlyCount "82"]
[EventDate "2019.08.02"]
[EventType "swiss"]
[EventCountry "SVK"]
[SourceTitle "playchess.com"]
[Source "ChessBase"]
[SourceQuality "1"]
[TimeControl "40/5400+30:1800+30"]

1. e4 {[%emt 0:00:00]} c5 {[%emt 0:00:02]} 2. Nf3 {[%emt 0:00:00]} d6 {[%emt 0:00:20]} 3. Bb5+ {[%emt 0:00:28]} Nd7 {[%emt 0:01:39]} 4. d4 {[%emt 0:00:09]} cxd4 {[%emt 0:00:13]} 5. Qxd4 {[%emt 0:00:06]} a6 {[%emt 0:00:14]} 6. Bxd7+ {[%emt 0:00:10]} Bxd7 {[%emt 0:00:07]} 7. Nc3 {[%emt 0:00:11]} e5 {[%emt 0:01:33]} 8. Qd3 {[%emt 0:00:20]} Rc8 {[%emt 0:00:12]} 9. O-O {[%emt 0:00:11]} h6 {[%emt 0:00:26]} 10. Rd1 {[%emt 0:01:50]} Nf6 {[%emt 0:00:51]} 11. Nd2 {[%emt 0:00:18]} Bg4 {[%emt 0:00:15]} 12. f3 {[%emt 0:02:09]} Be6 {[%emt 0:00:30]} 13. Nf1 {[%emt 0:00:57]} Be7 {[%emt 0:00:26]} 14. Ne3 {[%emt 0:00:26]} O-O {[%emt 0:00:47]} 15. a4 {[%emt 0:01:09]} Qc7 {[%emt 0:02:57]} 16. Bd2 {[%emt 0:00:52]} Rfd8 {[%emt 0:01:30]} 17. Be1 {[%emt 0:12:41]} d5 {[%emt 0:12:08]} 18. Nexd5 {[%emt 0:14:38]} Bxd5 {[%emt 0:00:12]} 19. exd5 {[%emt 0:01:07]} Bb4 {[%emt 0:00:16]} 20. Rac1 {[%emt 0:31:56]} Qb6+ {[%emt 0:05:54]} 21. Bf2 {[%emt 0:06:23]} Qa5 {[%emt 0:04:35]} 22. Be1 {[%emt 0:07:21]} Bxc3 {[%emt 0:04:44]} 23. Bxc3 {[%emt 0:01:10]} Qb6+ {[%emt 0:00:13]} 24. Kh1 {[%emt 0:00:07]} Nxd5 {[%emt 0:00:23]} 25. a5 {[%emt 0:04:30]} Qc7 {[%emt 0:00:33]} 26. h3 {[%emt 0:06:17]} Nxc3 {[%emt 0:05:55]} 27. Qxc3 {[%emt 0:00:01]} Rxd1+ {[%emt 0:00:53]} 28. Rxd1 {[%emt 0:00:01]} Qxc3 {[%emt 0:00:12]} 29. bxc3 {[%emt 0:00:00]} Rxc3 {[%emt 0:00:11]} 30. Rd8+ {[%emt 0:00:05]} Kh7 {[%emt 0:00:12]} 31. Rd7 {[%emt 0:00:01]} f6 {[%emt 0:00:24]} 32. Rxb7 {[%emt 0:00:10]} Rc5 {[%emt 0:00:08]} 33. Ra7 {[%emt 0:00:22]} Rxa5 {[%emt 0:01:27]} 34. Kh2 {[%emt 0:00:07]} Kg6 {[%emt 0:01:11]} 35. Kg3 {[%emt 0:05:21]} f5 {[%emt 0:06:21]} 36. Kf2 {[%emt 0:01:22]} Ra2 {[%emt 0:03:24]} 37. Rc7 {[%emt 0:00:07]} Kf6 {[%emt 0:02:02]} 38. h4 {[%emt 0:00:48]} f4 {[%emt 0:06:58]} 39. g3 {[%emt 0:03:15]} fxg3+ {[%emt 0:04:41]} 40. Kxg3 {[%emt 0:00:00]} a5 {[%emt 0:00:00]} 41. Kg4 {[%emt 0:05:16]} g6 {[%emt 0:12:52]} 1/2-1/2

[Event "EYCC Open-U18 2019"]
[Site "Bratislava"]
[Date "2019.08.08"]
[Round "7.2"]
[White "Nguyen, Thai Dai Van"]
[Black "Vrolijk, Liam"]
[Result "1-0"]
[ECO "D38"]
[WhiteElo "2535"]
[BlackElo "2478"]
[Annotator "ChessBase"]
[PlyCount "67"]
[EventDate "2019.08.02"]
[EventType "swiss"]
[EventCountry "SVK"]
[SourceTitle "playchess.com"]
[Source "ChessBase"]
[SourceQuality "1"]
[TimeControl "40/5400+30:1800+30"]

1. d4 {[%emt 0:00:00]} Nf6 {[%emt 0:00:00]} 2. c4 {[%emt 0:00:00]} e6 {[%emt 0:00:09]} 3. Nf3 {[%emt 0:00:00]} d5 {[%emt 0:01:33]} 4. Nc3 {[%emt 0:00:00]} Bb4 {[%emt 0:02:35]} 5. cxd5 {[%emt 0:01:21]} exd5 {[%emt 0:00:07]} 6. Bg5 {[%emt 0:00:04]} h6 {[%emt 0:01:37]} 7. Bh4 {[%emt 0:00:03]} O-O {[%emt 0:02:16]} 8. e3 {[%emt 0:00:03]} c5 {[%emt 0:04:03]} 9. dxc5 {[%emt 0:26:49]} Nbd7 {[%emt 0:03:40]} 10. Be2 {[%emt 0:03:13]} g5 {[%emt 0:06:29]} 11. Bg3 {[%emt 0:00:08]} Ne4 {[%emt 0:00:18]} 12. Rc1 {[%emt 0:17:28]} Ndxc5 {[%emt 0:07:51]} 13. Be5 {[%emt 0:07:24]} Re8 {[%emt 0:13:15]} 14. a3 {[%emt 0:02:46]} Bxc3+ {[%emt 0:01:59]} 15. Bxc3 {[%emt 0:00:04]} Nxc3 {[%emt 0:00:17]} 16. Rxc3 {[%emt 0:03:56]} Ne4 {[%emt 0:01:32]} 17. Rb3 {[%emt 0:02:54]} Qa5+ {[%emt 0:03:31]} 18. Rb4 {[%emt 0:01:07]} Bd7 {[%emt 0:03:35]} 19. O-O {[%emt 0:00:53]} b6 {[%emt 0:02:10]} 20. Nd2 {[%emt 0:03:55]} Nxd2 {[%emt 0:02:55]} 21. Qxd2 {[%emt 0:00:40]} Rac8 {[%emt 0:01:28]} 22. h4 {[%emt 0:01:50]} gxh4 {[%emt 0:14:46]} 23. Rd1 {[%emt 0:05:17]} h3 {[%emt 0:06:46]} 24. Bg4 {[%emt 0:08:39]} Be6 {[%emt 0:02:21]} 25. gxh3 {[%emt 0:02:27]} Qc5 {[%emt 0:06:44]} 26. Bxe6 {[%emt 0:00:59]} Rxe6 {[%emt 0:00:46]} 27. Rg4+ {[%emt 0:00:54]} Kf8 {[%emt 0:00:22]} 28. b4 {[%emt 0:03:24]} Qc3 {[%emt 0:02:36]} 29. Qxd5 {[%emt 0:01:01]} Qxa3 {[%emt 0:01:27]} 30. Rf4 {[%emt 0:00:52]} Kg8 {[%emt 0:02:21]} 31. Kh2 {[%emt 0:00:57]} Qb2 {[%emt 0:03:04]} 32. Qd7 {[%emt 0:02:14]} Rf8 {[%emt 0:01:50]} 33. Rg1+ {[%emt 0:00:05]} Kh8 {[%emt 0:00:04]} 34. Rxf7 {[%emt 0:00:27]} 1-0

[Event "EYCC Open-U18 2019"]
[Site "Bratislava"]
[Date "2019.08.08"]
[Round "7.3"]
[White "Hakobyan, Aram"]
[Black "Murzin, Volodar"]
[Result "1/2-1/2"]
[ECO "D15"]
[WhiteElo "2568"]
[BlackElo "2429"]
[Annotator "ChessBase"]
[PlyCount "73"]
[EventDate "2019.08.02"]
[EventType "swiss"]
[EventCountry "SVK"]
[SourceTitle "playchess.com"]
[Source "ChessBase"]
[SourceQuality "1"]
[TimeControl "40/5400+30:1800+30"]

1. d4 {[%emt 0:00:00]} d5 {[%emt 0:00:00]} 2. c4 {[%emt 0:00:00]} c6 {[%emt 0:00:00]} 3. Nf3 {[%emt 0:00:00]} Nf6 {[%emt 0:00:00]} 4. Nc3 {[%emt 0:01:30]} a6 {[%emt 0:00:00]} 5. Qc2 {[%emt 0:00:33]} g6 {[%emt 0:02:57]} 6. Bg5 {[%emt 0:01:15]} Nbd7 {[%emt 0:09:02]} 7. e3 {[%emt 0:01:22]} Bg7 {[%emt 0:00:19]} 8. Rc1 {[%emt 0:02:20]} O-O {[%emt 0:01:52]} 9. cxd5 {[%emt 0:03:35]} cxd5 {[%emt 0:01:25]} 10. Be2 {[%emt 0:00:05]} b5 {[%emt 0:08:06]} 11. O-O {[%emt 0:06:31]} Nb6 {[%emt 0:04:45]} 12. Ne5 {[%emt 0:00:31]} Bf5 {[%emt 0:09:38]} 13. Bd3 {[%emt 0:04:54]} Bxd3 {[%emt 0:04:59]} 14. Nxd3 {[%emt 0:02:01]} e6 {[%emt 0:01:47]} 15. Nc5 {[%emt 0:02:27]} Qd6 {[%emt 0:03:09]} 16. a4 {[%emt 0:11:02]} b4 {[%emt 0:04:05]} 17. a5 {[%emt 0:11:35]} Nc4 {[%emt 0:07:05]} 18. N3e4 {[%emt 0:03:00]} Nxe4 {[%emt 0:01:08]} 19. Nxe4 {[%emt 0:00:03]} Qd7 {[%emt 0:04:35]} 20. Nf6+ {[%emt 0:07:00]} Bxf6 {[%emt 0:00:11]} 21. Bxf6 {[%emt 0:00:04]} Rfc8 {[%emt 0:01:19]} 22. Qe2 {[%emt 0:06:07]} Nxa5 {[%emt 0:06:14]} 23. Rxc8+ {[%emt 0:02:53]} Rxc8 {[%emt 0:05:41]} 24. Qxa6 {[%emt 0:01:13]} Nc4 {[%emt 0:00:16]} 25. h3 {[%emt 0:02:05]} Nd2 {[%emt 0:03:11]} 26. Ra1 {[%emt 0:01:08]} Ne4 {[%emt 0:00:13]} 27. Be5 {[%emt 0:01:50]} f6 {[%emt 0:00:51]} 28. Bg3 {[%emt 0:03:00]} Qc6 {[%emt 0:03:59]} 29. Qa7 {[%emt 0:00:58]} Nxg3 {[%emt 0:05:54]} 30. fxg3 {[%emt 0:00:02]} Qc7 {[%emt 0:00:13]} 31. Qa6 {[%emt 0:01:50]} Kf7 {[%emt 0:01:54]} 32. Ra5 {[%emt 0:08:25]} Qc6 {[%emt 0:00:52]} 33. Qa7+ {[%emt 0:00:36]} Qc7 {[%emt 0:00:28]} 34. Kh2 {[%emt 0:02:52]} h5 {[%emt 0:03:27]} 35. h4 {[%emt 0:06:33]} g5 {[%emt 0:03:36]} 36. hxg5 {[%emt 0:02:04]} fxg5 {[%emt 0:00:06]} 37. Qxc7+ {[%emt 0:04:49]} 1/2-1/2

[Event "EYCC Open-U18 2019"]
[Site "Bratislava"]
[Date "2019.08.08"]
[Round "7.4"]
[White "Bronstein, Or"]
[Black "Bjerre, Jonas Buhl"]
[Result "1-0"]
[ECO "E04"]
[WhiteElo "2378"]
[BlackElo "2503"]
[Annotator "ChessBase"]
[PlyCount "139"]
[EventDate "2019.08.02"]
[EventType "swiss"]
[EventCountry "SVK"]
[SourceTitle "playchess.com"]
[Source "ChessBase"]
[SourceQuality "1"]
[TimeControl "40/5400+30:1800+30"]

1. d4 {[%emt 0:00:00]} Nf6 {[%emt 0:00:00]} 2. c4 {[%emt 0:00:00]} e6 {[%emt 0:00:00]} 3. Nf3 {[%emt 0:00:21]} d5 {[%emt 0:00:00]} 4. g3 {[%emt 0:00:05]} dxc4 {[%emt 0:00:18]} 5. Bg2 {[%emt 0:00:08]} Bb4+ {[%emt 0:00:31]} 6. Bd2 {[%emt 0:00:08]} a5 {[%emt 0:00:23]} 7. Qc2 {[%emt 0:00:46]} Bxd2+ {[%emt 0:01:03]} 8. Qxd2 {[%emt 0:00:28]} c6 {[%emt 0:00:42]} 9. a4 {[%emt 0:00:11]} Ne4 {[%emt 0:00:45]} 10. Qf4 {[%emt 0:00:06]} Qb6 {[%emt 0:02:21]} 11. O-O {[%emt 0:01:00]} Qxb2 {[%emt 0:01:27]} 12. Ne5 {[%emt 0:01:24]} O-O {[%emt 0:01:33]} 13. Na3 {[%emt 0:00:05]} Nc3 {[%emt 0:01:15]} 14. Qe3 {[%emt 0:00:23]} Nxe2+ {[%emt 0:01:06]} 15. Kh1 {[%emt 0:00:01]} Nc3 {[%emt 0:01:26]} 16. Rfc1 {[%emt 0:05:58]} Nd5 {[%emt 0:01:17]} 17. Bxd5 {[%emt 0:00:15]} exd5 {[%emt 0:00:12]} 18. Rcb1 {[%emt 0:00:57]} Qb4 {[%emt 0:04:36]} 19. Rxb4 {[%emt 0:00:14]} axb4 {[%emt 0:00:06]} 20. Naxc4 {[%emt 0:00:18]} dxc4 {[%emt 0:00:12]} 21. Nxc4 {[%emt 0:00:02]} Be6 {[%emt 0:03:40]} 22. Nd6 {[%emt 0:07:24]} Nd7 {[%emt 0:18:27]} 23. h3 {[%emt 0:15:09]} Ra7 {[%emt 0:20:23]} 24. Kh2 {[%emt 0:09:18]} Rfa8 {[%emt 0:02:02]} 25. d5 {[%emt 0:01:16]} cxd5 {[%emt 0:08:18]} 26. Qb3 {[%emt 0:07:15]} Ra6 {[%emt 0:10:58]} 27. Qxb4 {[%emt 0:01:39]} Rb6 {[%emt 0:00:37]} 28. Qf4 {[%emt 0:06:47]} Nc5 {[%emt 0:04:27]} 29. Nb5 {[%emt 0:02:00]} Rc8 {[%emt 0:05:45]} 30. Rc1 {[%emt 0:09:30]} Rbc6 {[%emt 0:03:08]} 31. Qh4 {[%emt 0:05:09]} Ne4 {[%emt 0:03:36]} 32. Rxc6 {[%emt 0:00:23]} bxc6 {[%emt 0:00:03]} 33. Nd4 {[%emt 0:00:51]} Bd7 {[%emt 0:02:53]} 34. Qe7 {[%emt 0:00:11]} Nf6 {[%emt 0:00:11]} 35. Qc5 {[%emt 0:02:57]} Ne4 {[%emt 0:00:18]} 36. Qa7 {[%emt 0:00:01]} Nf6 {[%emt 0:00:32]} 37. Nb3 {[%emt 0:00:26]} Bf5 {[%emt 0:02:59]} 38. g4 {[%emt 0:01:48]} Bd3 {[%emt 0:00:47]} 39. Nc5 {[%emt 0:01:22]} Bc4 {[%emt 0:00:10]} 40. g5 {[%emt 0:00:00]} Ne4 {[%emt 0:00:00]} 41. Qd7 {[%emt 0:01:04]} Rf8 {[%emt 0:02:30]} 42. Nxe4 {[%emt 0:00:45]} dxe4 {[%emt 0:00:05]} 43. Qxc6 {[%emt 0:00:06]} Be6 {[%emt 0:01:17]} 44. a5 {[%emt 0:00:06]} Rd8 {[%emt 0:01:07]} 45. Qc7 {[%emt 0:05:01]} Ra8 {[%emt 0:03:18]} 46. a6 {[%emt 0:01:29]} Rf8 {[%emt 0:02:35]} 47. Qd6 {[%emt 0:00:48]} Bc8 {[%emt 0:00:45]} 48. Qc6 {[%emt 0:00:09]} Bxa6 {[%emt 0:00:53]} 49. Qxa6 {[%emt 0:00:01]} Re8 {[%emt 0:00:09]} 50. Qc6 {[%emt 0:00:06]} Kf8 {[%emt 0:00:06]} 51. Qd6+ {[%emt 0:00:51]} Kg8 {[%emt 0:00:19]} 52. Kg3 {[%emt 0:02:00]} g6 {[%emt 0:01:03]} 53. Kf4 {[%emt 0:00:29]} Re6 {[%emt 0:01:16]} 54. Qd8+ {[%emt 0:00:13]} Kg7 {[%emt 0:00:06]} 55. h4 {[%emt 0:00:09]} e3 {[%emt 0:01:54]} 56. fxe3 {[%emt 0:00:02]} Rc6 {[%emt 0:00:24]} 57. Qd4+ {[%emt 0:03:08]} Kg8 {[%emt 0:00:10]} 58. Qd5 {[%emt 0:00:08]} Ra6 {[%emt 0:01:00]} 59. Qb5 {[%emt 0:02:12]} Re6 {[%emt 0:00:28]} 60. Qd7 {[%emt 0:00:02]} Kf8 {[%emt 0:01:16]} 61. e4 {[%emt 0:03:10]} Re8 {[%emt 0:00:48]} 62. e5 {[%emt 0:00:08]} Re6 {[%emt 0:00:44]} 63. Ke4 {[%emt 0:00:45]} Kg7 {[%emt 0:00:40]} 64. Kd5 {[%emt 0:00:35]} Ra6 {[%emt 0:00:14]} 65. Qb5 {[%emt 0:00:16]} Re6 {[%emt 0:00:44]} 66. Qb7 {[%emt 0:00:21]} Kf8 {[%emt 0:00:35]} 67. Qc8+ {[%emt 0:01:21]} Re8 {[%emt 0:00:19]} 68. Qd7 {[%emt 0:00:02]} Ra8 {[%emt 0:01:41]} 69. e6 {[%emt 0:00:32]} fxe6+ {[%emt 0:00:26]} 70. Ke4 {[%emt 0:01:52]} 1-0